bitfinex/quotes_BTCUSD_20230901
["timestamp","ask_amount","ask_price","bid_price","bid_amount"]
[1693604499608,3.01845387,25788.0,25787.0,0.01965228]
[1693604499816,3.01833387,25788.0,25787.0,0.01965228]
[1693604500220,3.01839387,25788.0,25787.0,0.01965228]
[1693604500354,3.01953387,25788.0,25787.0,0.01965228]
[1693604500560,3.02133387,25788.0,25787.0,0.01965228]
[1693604500759,2.31542887,25788.0,25787.0,0.01965228]
[1693604500988,2.43478887,25788.0,25787.0,0.01965228]
[1693604501163,2.43394887,25788.0,25787.0,0.01965228]
[1693604501366,3.01543387,25788.0,25787.0,0.01965228]
[1693604501569,3.01537387,25788.0,25787.0,0.01965228]
[1693604501775,3.01573387,25788.0,25787.0,0.01965228]
[1693604501954,3.01567387,25788.0,25787.0,0.01965228]
[1693604502175,3.01639387,25788.0,25787.0,0.01965228]
[1693604502370,3.01531387,25788.0,25787.0,0.01965228]
[1693604502579,3.01471387,25788.0,25787.0,0.01965228]
[1693604502797,3.01501387,25788.0,25787.0,0.01965228]
[1693604503289,3.01471387,25788.0,25787.0,0.01965228]
[1693604503495,3.01453387,25788.0,25787.0,0.01965228]
[1693604503701,3.01447387,25788.0,25787.0,0.01965228]
[1693604504067,3.01483387,25788.0,25787.0,0.01965228]
[1693604504275,3.01477387,25788.0,25787.0,0.01965228]
[1693604504474,3.01495387,25788.0,25787.0,0.01965228]
[1693604504585,3.01489387,25788.0,25787.0,0.01965228]
[1693604504794,3.01651387,25788.0,25787.0,0.01965228]
[1693604505095,3.01639387,25788.0,25787.0,0.01965228]
[1693604505368,3.01633387,25788.0,25787.0,0.01965228]
[1693604505554,3.01621387,25788.0,25787.0,0.01965228]
[1693604505912,3.01567387,25788.0,25787.0,0.01965228]
[1693604506113,3.01561387,25788.0,25787.0,0.00965228]
[1693604506313,3.01639387,25788.0,25787.0,0.00965228]
[1693604506540,3.05327387,25788.0,25787.0,0.01265228]
[1693604506734,3.05357387,25788.0,25787.0,0.01265228]
[1693604506943,3.05375387,25788.0,25787.0,0.003]
[1693604507152,3.05375387,25788.0,25787.0,0.006]
[1693604507153,3.09075387,25788.0,25787.0,0.006]
[1693604507355,3.09087387,25788.0,25787.0,0.006]
[1693604507525,3.05381387,25788.0,25787.0,0.003]
[1693604507731,3.05369387,25788.0,25787.0,0.003]
[1693604507930,3.08853387,25788.0,25787.0,0.006]
[1693604508189,3.01629387,25788.0,25787.0,0.006]
[1693604509630,3.29629387,25788.0,25787.0,0.006]
[1693604509770,3.01629387,25788.0,25787.0,0.006]
[1693604509974,3.08463387,25788.0,25787.0,0.006]
[1693604510183,3.08481387,25788.0,25787.0,0.006]
[1693604510668,3.36343387,25788.0,25787.0,0.006]
[1693604510823,3.36349387,25788.0,25787.0,0.006]
[1693604511162,3.08343387,25788.0,25787.0,0.006]
[1693604511494,3.36337387,25788.0,25787.0,0.006]
[1693604511670,3.08319387,25788.0,25787.0,0.006]
[1693604511867,3.08241387,25788.0,25787.0,0.006]
[1693604512094,3.08259387,25788.0,25787.0,0.006]
[1693604512236,3.36247387,25788.0,25787.0,0.006]
[1693604512434,3.29629387,25788.0,25787.0,0.006]
[1693604513216,3.01629387,25788.0,25787.0,0.006]
[1693604513426,3.08487387,25788.0,25787.0,0.006]
[1693604513624,3.36241387,25788.0,25787.0,0.006]
[1693604513825,3.08223387,25788.0,25787.0,0.006]
[1693604514191,3.08229387,25788.0,25787.0,0.006]
[1693604514391,3.08163387,25788.0,25787.0,0.006]
[1693604514631,3.08169387,25788.0,25787.0,0.006]
[1693604514810,3.36163387,25788.0,25787.0,0.006]
[1693604515006,3.29629387,25788.0,25787.0,0.006]
[1693604516575,3.25629387,25788.0,25787.0,0.006]
[1693604516781,3.29629387,25788.0,25787.0,0.006]
[1693604517204,3.27629387,25788.0,25787.0,0.006]
[1693604517418,3.29629387,25788.0,25787.0,0.006]
[1693604519503,3.01629387,25788.0,25787.0,0.006]
[1693604519700,3.10925287,25788.0,25787.0,0.006]
[1693604519870,3.38925287,25788.0,25787.0,0.006]
[1693604520842,3.10925287,25788.0,25787.0,0.006]
[1693604521283,3.38925287,25788.0,25787.0,0.006]
[1693604521689,3.10925287,25788.0,25787.0,0.006]
[1693604522109,3.38925287,25788.0,25787.0,0.006]
[1693604522327,3.10925287,25788.0,25787.0,0.006]
[1693604523132,3.29629387,25788.0,25787.0,0.006]
[1693604523305,3.38925287,25788.0,25787.0,0.006]
[1693604523508,3.29629387,25788.0,25787.0,0.006]
[1693604524278,3.38925287,25788.0,25787.0,0.006]
[1693604524482,3.14664078,25788.0,25787.0,0.006]
[1693604524704,3.05368178,25788.0,25787.0,0.006]
[1693604524882,3.10925835,25788.0,25787.0,0.006]
[1693604525403,3.38925835,25788.0,25787.0,0.006]
[1693604526523,3.10925835,25788.0,25787.0,0.006]
[1693604526662,3.38925835,25788.0,25787.0,0.006]
[1693604527486,3.10925835,25788.0,25787.0,0.006]
[1693604527694,3.38925835,25788.0,25787.0,0.006]
[1693604529692,3.29629935,25788.0,25787.0,0.006]
[1693604530361,3.10925835,25788.0,25787.0,0.006]
[1693604530863,3.38925835,25788.0,25787.0,0.006]
[1693604531793,3.36925835,25788.0,25787.0,0.006]
[1693604535340,3.50869685,25788.0,25787.0,0.006]
[1693604538337,3.22869685,25788.0,25787.0,0.006]
[1693604538667,3.50869685,25788.0,25787.0,0.006]
[1693604539015,3.22869685,25788.0,25787.0,0.006]
[1693604539372,3.41573785,25788.0,25787.0,0.006]
[1693604541187,3.60165585,25788.0,25787.0,0.006]
[1693604542229,3.46221735,25788.0,25787.0,0.006]
[1693604543326,3.69461486,25788.0,25787.0,0.006]
[1693604544356,3.46221735,25788.0,25787.0,0.006]
[1693604544689,3.18221735,25788.0,25787.0,0.006]
[1693604544803,3.41461486,25788.0,25787.0,0.006]
[1693604545448,3.69461486,25788.0,25787.0,0.006]
[1693604545863,3.41461486,25788.0,25787.0,0.006]
[1693604546337,3.69461486,25788.0,25787.0,0.006]
[1693604546536,3.41461486,25788.0,25787.0,0.006]
[1693604546742,3.69461486,25788.0,25787.0,0.006]
[1693604547086,3.22869686,25788.0,25787.0,0.006]
[1693604547296,3.50869686,25788.0,25787.0,0.006]
[1693604547616,3.22869686,25788.0,25787.0,0.006]
[1693604549267,3.69494523,25788.0,25787.0,0.006]
[1693604551531,3.50869686,25788.0,25787.0,0.006]
[1693604552550,3.48869686,25788.0,25787.0,0.006]
[1693604552746,3.50869686,25788.0,25787.0,0.006]
[1693604555898,3.22869686,25788.0,25787.0,0.006]
[1693604556286,3.48869686,25788.0,25787.0,0.006]
[1693604568172,3.6749727,25788.0,25787.0,0.006]
[1693604569355,3.48869686,25788.0,25787.0,0.006]
[1693604569832,3.67497529,25788.0,25787.0,0.006]
[1693604570256,3.48869686,25788.0,25787.0,0.006]
[1693604570995,3.67497497,25788.0,25787.0,0.006]
[1693604571621,3.48869686,25788.0,25787.0,0.006]
[1693604572099,3.67497493,25788.0,25787.0,0.006]
[1693604572349,3.67497488,25788.0,25787.0,0.006]
[1693604572548,3.48869686,25788.0,25787.0,0.006]
[1693604574445,3.48856132,25788.0,25787.0,0.006]
[1693604575603,3.67483957,25788.0,25787.0,0.006]
[1693604575833,3.48856132,25788.0,25787.0,0.006]
[1693604576205,3.67484109,25788.0,25787.0,0.006]
[1693604580163,3.39484109,25788.0,25787.0,0.006]
[1693604582458,3.39528563,25788.0,25787.0,0.006]
[1693604585147,3.16244017,25788.0,25787.0,0.006]
[1693604587971,3.39528563,25788.0,25787.0,0.006]
[1693604592552,2.81362063,25788.0,25787.0,0.006]
[1693604592961,2.58077517,25788.0,25787.0,0.006]
[1693604594943,2.81362063,25788.0,25787.0,0.006]
[1693604598712,2.58077517,25788.0,25787.0,0.006]
[1693604600538,2.81362063,25788.0,25787.0,0.006]
[1693604604703,2.62734427,25788.0,25787.0,0.006]
[1693604605398,3.20900927,25788.0,25787.0,0.006]
[1693604618248,2.62734427,25788.0,25787.0,0.026]
[1693604620706,2.39449881,25788.0,25787.0,0.026]
[1693604624711,2.62727007,25788.0,25787.0,0.026]
[1693604626511,3.20893507,25788.0,25787.0,0.026]
[1693604627714,3.20893507,25788.0,25783.0,0.02]
[1693604627715,3.32195507,25788.0,25783.0,0.02]
[1693604627875,0.09309984,25785.0,25783.0,0.02]
[1693604628071,0.48018662,25785.0,25783.0,0.02]
[1693604628861,0.51018662,25785.0,25783.0,0.023]
[1693604629071,0.54018662,25785.0,25783.0,0.026]
[1693604630753,0.56018662,25785.0,25780.0,0.37080945]
[1693604630950,0.02,25784.0,25780.0,0.18280945]
[1693604631162,0.10829432,25784.0,25780.0,0.18280945]
[1693604631355,0.02,25784.0,25780.0,0.18280945]
[1693604631946,0.02,25784.0,25780.0,0.19180945]
[1693604632330,0.021,25784.0,25780.0,0.19180945]
[1693604632542,0.021,25784.0,25777.0,0.28322826]
[1693604632543,0.01657174,25782.0,25777.0,0.28322826]
[1693604632748,0.10486606,25782.0,25780.0,0.009]
[1693604632950,0.01657174,25782.0,25780.0,0.009]
[1693604634325,0.01657174,25782.0,25780.0,0.006]
[1693604634326,0.01757174,25782.0,25780.0,0.006]
[1693604634538,0.02157174,25782.0,25780.0,0.006]
[1693604635185,0.01757174,25782.0,25780.0,0.006]
[1693604635396,0.01857174,25782.0,25780.0,0.015]
[1693604636584,0.01657174,25781.0,25780.0,0.015]
[1693604637612,0.01657174,25781.0,25780.0,0.009]
[1693604637948,0.01757174,25781.0,25780.0,0.007]
[1693604638224,0.01857174,25781.0,25780.0,0.016]
[1693604639242,0.002,25781.0,25780.0,0.016]
[1693604647015,0.42565852,25781.0,25780.0,0.016]
[1693604650341,0.51875836,25781.0,25780.0,0.016]
[1693604651322,0.42565852,25781.0,25780.0,0.016]
[1693604652234,0.38908678,25781.0,25780.0,0.016]
[1693604652530,0.42565852,25781.0,25780.0,0.016]
[1693604653495,0.38908678,25781.0,25780.0,0.016]
[1693604653700,0.42565852,25781.0,25780.0,0.016]
[1693604654917,0.37565852,25781.0,25780.0,0.016]
[1693604664364,0.33908678,25781.0,25780.0,0.016]
[1693604664568,0.37565852,25781.0,25780.0,0.016]
[1693604675419,0.37565852,25781.0,25780.0,0.01549]
[1693604677886,0.35565852,25781.0,25780.0,0.01549]
[1693604678092,0.37565852,25781.0,25780.0,0.01549]
[1693604678947,0.46875836,25781.0,25780.0,0.01549]
[1693604681003,1.05058136,25781.0,25780.0,0.01549]
[1693604681325,1.63240436,25781.0,25780.0,0.01549]
[1693604684227,1.77205412,25781.0,25780.0,0.01549]
[1693604684569,1.63240436,25781.0,25780.0,0.01549]
[1693604686699,1.77205412,25781.0,25780.0,0.01549]
[1693604688891,1.67895428,25781.0,25780.0,0.01549]
[1693604694772,1.86515396,25781.0,25780.0,0.01549]
[1693604695425,1.7255042,25781.0,25780.0,0.01549]
[1693604697289,2.3073272,25781.0,25780.0,0.01549]
[1693604698558,2.54009846,25781.0,25780.0,0.01549]
[1693604698746,2.3073272,25781.0,25780.0,0.01549]
[1693604698943,2.54009846,25781.0,25780.0,0.01549]
[1693604700859,1.7255042,25781.0,25780.0,0.01549]
[1693604702077,2.55439878,25781.0,25780.0,0.01549]
[1693604702414,2.32162752,25781.0,25780.0,0.01549]
[1693604702636,2.55444581,25781.0,25780.0,0.01549]
[1693604703270,2.96154581,25781.0,25780.0,0.01549]
[1693604703472,2.72872752,25781.0,25780.0,0.01549]
[1693604703911,2.96149967,25781.0,25780.0,0.01549]
[1693604704102,2.96149967,25781.0,25773.0,0.24535253]
[1693604704103,0.02,25776.0,25773.0,0.24535253]
[1693604704329,0.08829432,25775.0,25773.0,0.1523102]
[1693604704535,0.08829432,25775.0,25772.0,0.09304233]
[1693604704765,0.10829432,25775.0,25771.0,0.23261423]
[1693604704972,0.02,25774.0,25771.0,0.23261423]
[1693604705174,0.10829432,25774.0,25771.0,0.23261423]
[1693604705383,0.02,25774.0,25771.0,0.26383514]
[1693604705587,0.02,25774.0,25773.0,0.034]
[1693604705764,0.02,25774.0,25771.0,0.12426324]
[1693604705997,0.02,25774.0,25771.0,0.19526324]
[1693604706337,0.02,25774.0,25771.0,0.16404233]
[1693604707200,0.02,25774.0,25771.0,0.09304233]
[1693604707366,0.024,25774.0,25773.0,0.034]
[1693604707563,0.028,25774.0,25773.0,0.034]
[1693604707763,0.028,25774.0,25771.0,0.09304233]
[1693604707764,0.02,25774.0,25771.0,0.09304233]
[1693604708206,0.028,25774.0,25771.0,0.15904233]
[1693604708345,0.024,25774.0,25771.0,0.12704233]
[1693604708752,0.025,25774.0,25773.0,0.008]
[1693604708951,0.024,25774.0,25771.0,0.034]
[1693604709177,0.028,25774.0,25771.0,0.066]
[1693604710168,0.024,25774.0,25771.0,0.032]
[1693604710501,0.021,25774.0,25773.0,0.011]
[1693604710876,0.022,25774.0,25773.0,0.019]
[1693604711079,0.02,25774.0,25770.0,0.09304233]
[1693604711287,0.024,25774.0,25771.0,0.034]
[1693604711465,0.028,25774.0,25771.0,0.066]
[1693604711600,0.02,25774.0,25770.0,0.09304233]
[1693604711796,0.021,25774.0,25773.0,0.008]
[1693604712060,0.022,25774.0,25773.0,0.011]
[1693604712235,0.021,25774.0,25773.0,0.011]
[1693604712441,0.025,25774.0,25773.0,0.011]
[1693604713287,0.024,25774.0,25771.0,0.032]
[1693604713488,0.028,25774.0,25771.0,0.032]
[1693604713688,0.024,25774.0,25770.0,0.034]
[1693604713891,0.025,25774.0,25773.0,0.008]
[1693604714090,0.021,25774.0,25773.0,0.008]
[1693604714246,0.021,25774.0,25773.0,0.011]
[1693604714465,0.025,25774.0,25773.0,0.011]
[1693604714648,0.021,25774.0,25773.0,0.011]
[1693604715122,0.022,25774.0,25773.0,0.019]
[1693604716083,0.40908678,25774.0,25773.0,0.019]
[1693604726088,0.99106778,25774.0,25773.0,0.019]
[1693604727845,0.99006778,25774.0,25773.0,0.011]
[1693604728184,1.00906778,25774.0,25773.0,0.013]
[1693604728402,1.59104878,25774.0,25773.0,0.013]
[1693604729025,1.59004878,25774.0,25773.0,0.002]
[1693604729476,1.84544878,25774.0,25773.0,0.004]
[1693604731841,1.96594878,25774.0,25773.0,0.004]
[1693604732242,2.54792978,25774.0,25773.0,0.004]
[1693604741840,2.79066937,25774.0,25773.0,0.004]
[1693604742040,2.85066937,25774.0,25773.0,0.004]
[1693604742852,2.83366937,25774.0,25773.0,0.002]
[1693604743105,2.85966937,25774.0,25773.0,0.004]
[1693604743298,2.84066937,25774.0,25773.0,0.002]
[1693604743551,2.86866937,25774.0,25773.0,0.004]
[1693604743779,2.84066937,25774.0,25773.0,0.002]
[1693604744375,3.01266937,25774.0,25773.0,0.001]
[1693604744804,3.04866937,25774.0,25773.0,0.003]
[1693604745176,3.45576937,25774.0,25773.0,0.003]
[1693604745605,3.47576937,25774.0,25773.0,0.003]
[1693604745784,3.54536937,25774.0,25773.0,0.003]
[1693604745944,3.63901579,25774.0,25773.0,0.003]
[1693604746144,3.65847579,25774.0,25773.0,0.003]
[1693604746344,3.95817579,25774.0,25773.0,0.003]
[1693604746549,3.36866937,25774.0,25773.0,0.003]
[1693604747823,3.46177579,25774.0,25773.0,0.003]
[1693604748639,3.36866937,25774.0,25773.0,0.003]
[1693604748841,3.4616382,25774.0,25773.0,0.003]
[1693604754915,3.60109145,25774.0,25773.0,0.003]
[1693604755119,3.4616382,25774.0,25773.0,0.003]
[1693604755477,3.60109145,25774.0,25773.0,0.003]
[1693604756680,3.50812262,25774.0,25773.0,0.003]
[1693604758867,3.69406029,25774.0,25773.0,0.003]
[1693604759533,3.69421996,25774.0,25773.0,0.003]
[1693604760165,3.67421996,25774.0,25773.0,0.003]
[1693604760322,3.55469828,25774.0,25773.0,0.003]
[1693604761327,3.60120551,25774.0,25773.0,0.003]
[1693604764644,3.78727472,25774.0,25773.0,0.003]
[1693604775395,3.60120551,25774.0,25773.0,0.003]
[1693604776247,3.78721572,25774.0,25773.0,0.003]
[1693604776407,3.60120551,25774.0,25773.0,0.003]
[1693604777328,3.78718534,25774.0,25773.0,0.003]
[1693604777646,3.60120551,25774.0,25773.0,0.003]
[1693604780595,4.00830551,25774.0,25773.0,0.003]
[1693604780923,4.07412551,25774.0,25773.0,0.003]
[1693604781137,4.07388551,25774.0,25773.0,0.003]
[1693604781265,4.09556551,25774.0,25773.0,0.003]
[1693604781469,4.09472551,25774.0,25773.0,0.003]
[1693604781673,4.09532551,25774.0,25773.0,0.003]
[1693604781868,4.09418551,25774.0,25773.0,0.003]
[1693604782075,4.09400551,25774.0,25773.0,0.003]
[1693604782271,4.09388551,25774.0,25773.0,0.003]
[1693604782447,4.09430551,25774.0,25773.0,0.003]
[1693604782672,4.02830551,25774.0,25773.0,0.003]
[1693604783067,4.04487725,25774.0,25773.0,0.003]
[1693604783669,4.11051725,25774.0,25773.0,0.003]
[1693604783910,4.11069725,25774.0,25773.0,0.003]
[1693604784116,3.81234111,25774.0,25773.0,0.003]
[1693604785819,3.87798111,25774.0,25773.0,0.003]
[1693604786020,3.87804111,25774.0,25773.0,0.003]
[1693604786241,3.87912111,25774.0,25773.0,0.003]
[1693604786603,3.87900111,25774.0,25773.0,0.003]
[1693604786798,3.88074111,25774.0,25773.0,0.003]
[1693604787003,3.87966111,25774.0,25773.0,0.003]
[1693604787204,3.87888111,25774.0,25773.0,0.003]
[1693604787480,3.87972111,25774.0,25773.0,0.003]
[1693604788060,3.87996111,25774.0,25773.0,0.003]
[1693604788230,3.88032111,25774.0,25773.0,0.003]
[1693604788437,3.88020111,25774.0,25773.0,0.003]
[1693604788640,3.88002111,25774.0,25773.0,0.003]
[1693604790340,3.86002111,25774.0,25773.0,0.003]
[1693604790540,3.88002111,25774.0,25773.0,0.003]
[1693604792731,3.88032111,25774.0,25773.0,0.003]
[1693604792955,3.81234111,25774.0,25773.0,0.003]
[1693604794107,3.8436339,25774.0,25773.0,0.003]
[1693604796909,3.9110139,25774.0,25773.0,0.003]
[1693604797455,3.9111339,25774.0,25773.0,0.003]
[1693604797657,3.9110739,25774.0,25773.0,0.003]
[1693604797791,3.9117939,25774.0,25773.0,0.003]
[1693604798412,3.9121539,25774.0,25773.0,0.003]
[1693604798621,3.9117939,25774.0,25773.0,0.003]
[1693604798861,3.9114339,25774.0,25773.0,0.003]
[1693604799041,3.9117939,25774.0,25773.0,0.003]
[1693604799242,3.9113739,25774.0,25773.0,0.003]
[1693604799420,3.9117339,25774.0,25773.0,0.003]
[1693604799851,3.9116739,25774.0,25773.0,0.003]
[1693604800045,3.9108939,25774.0,25773.0,0.003]
[1693604800374,3.9115539,25774.0,25773.0,0.003]
[1693604800528,3.9117939,25774.0,25773.0,0.003]
[1693604800728,3.9114939,25774.0,25773.0,0.003]
[1693604801248,3.9128139,25774.0,25773.0,0.003]
[1693604801455,0.03657174,25768.0,25766.0,0.1643]
[1693604801608,0.42365852,25768.0,25764.0,0.51014878]
[1693604801814,0.08829432,25767.0,25764.0,0.27709647]
[1693604802418,0.42365852,25768.0,25764.0,0.27709647]
[1693604802849,0.42765852,25768.0,25764.0,0.29009647]
[1693604803057,0.42765852,25768.0,25766.0,0.016]
[1693604804300,0.42365852,25768.0,25764.0,0.09316821]
[1693604804689,0.42765852,25768.0,25764.0,0.10916821]
[1693604805059,0.004,25767.0,25764.0,0.12216821]
[1693604805274,0.41108678,25768.0,25764.0,0.10916821]
[1693604805455,0.43165852,25768.0,25764.0,0.12216821]
[1693604805589,0.38708678,25767.0,25764.0,0.12216821]
[1693604805803,0.38708678,25767.0,25764.0,0.10616821]
[1693604805804,0.1205,25766.0,25764.0,0.10616821]
[1693604805999,0.38708678,25766.0,25764.0,0.10616821]
[1693604806245,0.38708678,25766.0,25764.0,0.12016821]
[1693604806864,0.38708678,25766.0,25764.0,0.10716821]
[1693604807517,0.38708678,25766.0,25764.0,0.09316821]
[1693604807717,0.38908678,25766.0,25764.0,0.10716821]
[1693604807917,0.39108678,25766.0,25764.0,0.11916821]
[1693604809480,0.39108678,25766.0,25764.0,0.026]
[1693604809900,0.39108678,25766.0,25764.0,0.11916821]
[1693604810407,0.39108678,25766.0,25764.0,0.026]
[1693604810583,0.39108678,25766.0,25764.0,0.11916821]
[1693604810787,0.39108678,25766.0,25764.0,0.026]
[1693604821229,0.02,25765.0,25764.0,0.026]
[1693604821557,0.40708678,25765.0,25764.0,0.026]
[1693604822392,0.40708678,25765.0,25764.0,0.014]
[1693604822596,0.40708678,25765.0,25762.0,0.23292052]
[1693604822802,0.38708678,25764.0,25762.0,0.23292052]
[1693604823486,0.40708678,25764.0,25762.0,0.09316821]
[1693604823663,0.02,25763.0,25762.0,0.09316821]
[1693604823873,0.02,25763.0,25762.0,0.10716821]
[1693604824305,0.02,25763.0,25762.0,0.10516821]
[1693604824451,0.02,25763.0,25762.0,0.09316821]
[1693604824657,0.024,25763.0,25762.0,0.11916821]
[1693604825854,0.024,25763.0,25762.0,0.10516821]
[1693604826085,0.024,25763.0,25762.0,0.11916821]
[1693604826086,0.028,25763.0,25762.0,0.11916821]
[1693604830395,0.028,25763.0,25762.0,0.026]
[1693604831155,0.028,25763.0,25762.0,0.11916821]
[1693604831348,0.028,25763.0,25762.0,0.026]
[1693604841025,0.04457174,25763.0,25762.0,0.026]
[1693604842499,0.03657174,25763.0,25761.0,0.25271652]
[1693604842916,0.02,25762.0,25761.0,0.11296421]
[1693604844507,0.02,25762.0,25761.0,0.12396421]
[1693604844708,0.02,25762.0,25761.0,0.12496421]
[1693604845090,0.022,25762.0,25761.0,0.12396421]
[1693604845407,0.024,25762.0,25761.0,0.27571652]
[1693604847722,0.004,25762.0,25761.0,0.39621652]
[1693604847921,0.024,25762.0,25761.0,0.25646421]
[1693604848464,0.024,25762.0,25761.0,0.39621652]
[1693604850483,0.024,25762.0,25761.0,0.85508901]
[1693604853368,0.004,25762.0,25761.0,0.85508901]
[1693604853558,0.004,25762.0,25761.0,0.39621652]
[1693604854105,0.004,25762.0,25761.0,0.8550889]
[1693604854306,0.004,25762.0,25761.0,1.14900759]
[1693604854521,0.02,25767.0,25763.0,0.06342826]
[1693604854682,0.02,25767.0,25764.0,0.15483471]
[1693604854883,0.02,25767.0,25766.0,0.1205]
[1693604855449,0.02,25770.0,25766.0,0.1205]
[1693604855657,0.02,25770.0,25766.0,0.15483471]
[1693604855658,0.017,25767.0,25766.0,0.15483471]
[1693604855877,0.02,25770.0,25766.0,0.1205]
[1693604856080,0.02,25770.0,25768.0,0.1205]
[1693604857636,0.10966571,25771.0,25768.0,0.1205]
[1693604857637,0.09309397,25771.0,25768.0,0.1205]
[1693604857802,0.056,25770.0,25768.0,0.1235]
[1693604858205,0.092,25770.0,25768.0,0.1265]
[1693604858424,0.02,25770.0,25768.0,0.1205]
[1693604858627,0.049,25770.0,25768.0,0.1235]
[1693604858832,0.079,25770.0,25768.0,0.1265]
[1693604867130,0.079,25770.0,25769.0,0.1205]
[1693604867501,0.059,25770.0,25769.0,0.1205]
[1693604867904,0.03,25770.0,25769.0,0.1205]
[1693604868112,0.03756749,25772.0,25769.0,0.1205]
[1693604868262,0.03756749,25772.0,25769.0,0.006]
[1693604868263,0.036,25770.0,25769.0,0.006]
[1693604868467,0.072,25770.0,25769.0,0.1265]
[1693604869332,0.06735,25770.0,25769.0,0.57401504]
[1693604869508,0.036,25770.0,25769.0,0.95401504]
[1693604869715,0.036,25770.0,25769.0,1.02433504]
[1693604869916,0.036,25770.0,25769.0,1.02373504]
[1693604870117,0.035073,25770.0,25769.0,1.11958531]
[1693604870298,0.035073,25770.0,25769.0,1.03357504]
[1693604870496,0.037073,25770.0,25769.0,1.04063504]
[1693604870703,0.002,25770.0,25769.0,1.03691504]
[1693604870906,0.004,25770.0,25769.0,1.03625504]
[1693604871104,0.004,25770.0,25769.0,1.03367504]
[1693604871324,0.000992,25776.0,25773.0,0.00342826]
[1693604871526,0.03657174,25777.0,25775.0,0.1205]
[1693604871773,0.03657174,25777.0,25775.0,0.27533471]
[1693604871947,0.03657174,25777.0,25775.0,0.1205]
[1693604872639,0.06757174,25777.0,25775.0,0.1235]
[1693604873643,0.09557174,25777.0,25775.0,0.1265]
[1693604879285,0.059,25777.0,25775.0,0.1265]
[1693604879443,0.09557174,25777.0,25775.0,0.1265]
[1693604881312,0.09557174,25777.0,25775.0,0.006]
[1693604883795,0.059,25777.0,25775.0,0.006]
[1693604884005,0.09557174,25777.0,25775.0,0.006]
[1693604887459,0.09557174,25777.0,25776.0,0.1205]
[1693604887460,0.059,25777.0,25776.0,0.1205]
[1693604888312,0.031,25777.0,25776.0,0.1205]
[1693604888640,0.067,25777.0,25776.0,0.1245]
[1693604888990,0.036,25777.0,25776.0,0.1245]
[1693604890420,0.072,25777.0,25776.0,0.1275]
[1693604895865,0.072,25777.0,25776.0,0.19092826]
[1693604896474,0.072,25777.0,25776.0,0.17092826]
[1693604897058,0.072,25777.0,25776.0,0.13092826]
[1693604899663,0.072,25777.0,25776.0,0.1275]
[1693604899864,0.072,25777.0,25776.0,0.21092826]
[1693604900098,0.072,25777.0,25776.0,0.51092826]
[1693604906454,0.072,25777.0,25776.0,0.89801504]
[1693604907786,0.072,25777.0,25776.0,1.01851504]
[1693604908770,0.071934,25777.0,25776.0,1.05851504]
[1693604914556,0.071934,25777.0,25776.0,0.93801504]
[1693604917968,0.071934,25777.0,25776.0,1.13198504]
[1693604921035,0.071934,25777.0,25776.0,1.25248504]
[1693604921243,0.071934,25777.0,25776.0,1.27248504]
[1693604921533,0.071934,25777.0,25776.0,1.45111202]
[1693604921874,0.071934,25777.0,25776.0,1.45309202]
[1693604922172,0.035934,25777.0,25776.0,2.0122532]
[1693604922402,0.067934,25777.0,25776.0,2.0123132]
[1693604922573,0.032,25777.0,25776.0,2.0085532]
[1693604922720,0.061,25777.0,25776.0,2.0121532]
[1693604922919,0.093,25777.0,25776.0,2.0164132]
[1693604923142,0.093,25777.0,25776.0,2.0171932]
[1693604923337,0.00099779,25779.0,25778.0,0.14342826]
[1693604923541,0.00099779,25779.0,25778.0,0.97101504]
[1693604923771,0.12936803,25785.0,25780.0,0.06342826]
[1693604923970,0.63914145,25784.0,25783.0,0.1205]
[1693604924167,0.48594145,25784.0,25783.0,0.1205]
[1693604925631,0.2433,25784.0,25783.0,0.1205]
[1693604926047,0.3163,25784.0,25783.0,0.1265]
[1693604946254,0.073,25784.0,25783.0,0.51358678]
[1693604948188,0.073,25784.0,25783.0,0.70749678]
[1693604949384,0.073,25784.0,25783.0,0.83092504]
[1693604949570,0.073,25784.0,25783.0,1.15092504]
[1693604950466,0.037,25784.0,25783.0,1.14792504]
[1693604950641,0.056,25784.0,25783.0,1.14992504]
[1693604951059,0.2549,25786.0,25784.0,0.10342826]
[1693604951263,0.2549,25786.0,25785.0,0.1205]
[1693604951601,0.18151961,25787.0,25785.0,0.1205]
[1693604952163,0.03,25786.0,25785.0,0.1205]
[1693604952516,0.18151961,25787.0,25785.0,0.1205]
[1693604952966,0.21751961,25787.0,25785.0,0.1245]
[1693604953746,0.036,25786.0,25785.0,0.1285]
[1693604953950,0.21751961,25787.0,25785.0,0.1245]
[1693604954375,0.25351961,25787.0,25785.0,0.1285]
[1693604954608,0.18151961,25787.0,25785.0,0.1205]
[1693604955019,0.072,25786.0,25785.0,0.1285]
[1693604955254,0.036,25786.0,25785.0,0.1245]
[1693604955434,0.21751961,25787.0,25785.0,0.1245]
[1693604955838,0.21751961,25787.0,25785.0,0.1285]
[1693604955839,0.25351961,25787.0,25785.0,0.1285]
[1693604956135,0.2223,25787.0,25785.0,0.1285]
[1693604956633,0.2223,25787.0,25785.0,0.51558678]
[1693604960208,0.2223,25787.0,25784.0,0.23391]
[1693604960408,0.2223,25787.0,25785.0,0.4205]
[1693604960979,0.1863,25787.0,25785.0,0.4205]
[1693604961386,0.2173,25787.0,25785.0,0.4205]
[1693604961598,0.2173,25787.0,25785.0,0.80758678]
[1693604961799,0.1863,25787.0,25785.0,0.80758678]
[1693604962305,0.2223,25787.0,25785.0,0.81158678]
[1693604962503,0.072,25787.0,25785.0,0.81158678]